bitfinex-derivatives/quotes_SOLF0:USTF0_20260210
["timestamp","ask_amount","ask_price","bid_price","bid_amount"]
[1770752896691,10.7958,83.412,83.37,10.801]
[1770752897890,3.80506257,83.413,83.37,10.801]
[1770752898186,3.80506257,83.413,83.376,10.8003]
[1770752898388,3.80506257,83.427,83.377,4.07468269]
[1770752899394,3.80506257,83.443,83.384,4.07468269]
[1770752900393,3.80506257,83.443,83.37,3.82805689]
[1770752900587,36.01,83.469,83.37,3.82805689]
[1770752900588,3.97677441,83.439,83.37,3.82805689]
[1770752901293,3.97677441,83.418,83.365,10.8017]
[1770752901493,3.97677441,83.418,83.327,21.6135]
[1770752901494,3.97677441,83.418,83.342,3.82805689]
[1770752901890,10.7971,83.401,83.355,10.803]
[1770752903889,10.7971,83.401,83.355,14.84587285]
[1770752906401,10.7971,83.401,83.359,4.04287285]
[1770752906695,3.917002,83.419,83.359,4.04287285]
[1770752906895,3.917002,83.409,83.36,3.68307077]
[1770752907495,14.83532745,83.445,83.34,95.72]
[1770752907496,3.917002,83.431,83.381,4.04287285]
[1770752907794,3.917002,83.431,83.39,3.68307077]
[1770752908593,3.917002,83.431,83.381,4.04287285]
[1770752908899,10.7935,83.429,83.386,10.799]
[1770752909294,10.7946,83.421,83.381,4.04287285]
[1770752909501,10.7946,83.421,83.376,10.8004]
[1770752909502,3.917002,83.419,83.376,10.8004]
[1770752913095,3.917002,83.409,83.376,10.8004]
[1770752913392,10.7944,83.422,83.368,4.04287285]
[1770752913393,3.68307077,83.42,83.382,10.7996]
[1770752913794,3.68307077,83.42,83.371,4.04287285]
[1770752913991,3.917002,83.421,83.371,4.04287285]
[1770752914790,10.7944,83.422,83.371,4.04287285]
[1770752914791,3.917002,83.417,83.371,4.04287285]
[1770752915399,3.917002,83.417,83.38,10.7998]
[1770752915599,129.6413,83.452,83.381,4.04287285]
[1770752915600,3.917002,83.429,83.381,4.04287285]
[1770752916704,14.710602,83.429,83.389,10.7986]
[1770752917497,10.7938,83.427,83.382,14.84237285]
[1770752918807,14.710802,83.427,83.382,14.84237285]
[1770752919000,3.917002,83.419,83.375,10.8004]
[1770752919200,3.917002,83.419,83.369,4.04287285]
[1770752920606,3.917002,83.415,83.371,10.801]
[1770752920804,3.917002,83.415,83.371,4.04287285]
[1770752921407,3.917002,83.415,83.381,10.7997]
[1770752921707,10.7945,83.422,83.381,14.84257285]
[1770752921908,10.7945,83.422,83.382,4.04287285]
[1770752922603,3.917002,83.409,83.368,10.8014]
[1770752922810,7.60007277,83.42,83.371,4.04287285]
[1770752923007,3.917002,83.42,83.38,7.72594362]
[1770752923708,14.711802,83.42,83.381,10.7996]
[1770752924105,3.917002,83.42,83.381,14.84247285]
[1770752924512,3.917002,83.42,83.381,4.04287285]
[1770752929018,3.68307077,83.44,83.391,4.04287285]
[1770752929324,3.917002,83.439,83.391,4.04287285]
[1770752929819,10.7935,83.43,83.391,4.04287285]
[1770752930026,3.94532206,83.419,83.373,3.79051851]
[1770752931527,3.94532206,83.417,83.374,10.8005]
[1770752932327,10.7942,83.424,83.381,3.79051851]
[1770752932527,14.73952206,83.424,83.381,3.79051851]
[1770752933325,10.7949,83.419,83.381,3.79051851]
[1770752933627,3.94532206,83.418,83.371,3.79051851]
[1770752934126,3.94532206,83.418,83.375,14.59101851]
[1770752935029,3.94532206,83.418,83.376,3.79051851]
[1770752935326,3.94532206,83.418,83.379,14.59041851]
[1770752936031,10.7951,83.417,83.379,14.59041851]
[1770752936323,3.94532206,83.418,83.379,14.59041851]
[1770752938932,3.94532206,83.409,83.365,10.8017]
[1770752940123,3.94532206,83.409,83.367,10.8014]
[1770752941432,3.94532206,83.418,83.374,3.79051851]
[1770752941823,3.94532206,83.418,83.362,3.79051851]
[1770752942729,10.7957,83.413,83.369,10.8013]
[1770752942930,14.74102206,83.413,83.369,10.8013]
[1770752943329,14.74102206,83.413,83.37,3.68246992]
[1770752943532,3.94532206,83.41,83.369,10.8013]
[1770752943729,3.94532206,83.41,83.362,3.79051851]
[1770752944032,3.94532206,83.409,83.362,3.79051851]
[1770752944633,3.94532206,83.4,83.35,3.68246992]
[1770752944926,3.94532206,83.389,83.346,3.79051851]
[1770752945324,3.94532206,83.415,83.371,3.79051851]
[1770752945527,3.94532206,83.428,83.38,3.68246992]
[1770752945734,3.94532206,83.428,83.382,10.7995]
[1770752945927,3.94532206,83.428,83.382,14.59001851]
[1770752946231,3.94532206,83.428,83.383,3.79051851]
[1770752946633,10.7939,83.427,83.383,3.79051851]
[1770752946830,11.1892906,83.447,83.401,3.79051851]
[1770752947030,3.94532206,83.453,83.401,3.79051851]
[1770752947230,14.73642206,83.448,83.401,3.79051851]
[1770752947831,3.94532206,83.443,83.401,3.79051851]
[1770752948135,3.94532206,83.443,83.39,7.47298843]
[1770752948330,3.94532206,83.443,83.391,3.79051851]
[1770752948531,3.94532206,83.443,83.401,3.79051851]
[1770752950334,3.94532206,83.439,83.39,3.68246992]
[1770752950631,3.94532206,83.439,83.391,3.79051851]
[1770752951537,3.94532206,83.439,83.4,3.68246992]
[1770752951737,3.94532206,83.439,83.4,7.47298843]
[1770752951933,11.1892906,83.452,83.411,3.79051851]
[1770752951934,3.94532206,83.452,83.411,3.79051851]
[1770752952534,3.94532206,83.452,83.412,10.7956]
[1770752952839,3.94532206,83.452,83.412,14.58611851]
[1770752953338,3.94532206,83.452,83.413,3.79051851]
[1770752955342,3.94532206,83.452,83.414,10.7953]
[1770752955830,3.68246992,83.46,83.415,3.79051851]
[1770752956640,3.94532206,83.459,83.415,3.79051851]
[1770752960240,3.68246992,83.46,83.415,3.79051851]
[1770752960241,4.02796047,83.458,83.415,3.79051851]
[1770752960641,4.02796047,83.449,83.401,14.71874107]
[1770752960838,4.02796047,83.439,83.391,3.92164107]
[1770752961750,4.02796047,83.439,83.399,10.7973]
[1770752963351,3.68246992,83.45,83.404,4.12390871]
[1770752963854,7.53422006,83.45,83.404,4.12390871]
[1770752964044,7.53422006,83.45,83.409,10.7961]
[1770752964651,3.85175014,83.45,83.412,10.7956]
[1770752965351,3.85175014,83.45,83.416,10.7952]
[1770752965652,3.85175014,83.45,83.413,4.12390871]
[1770752966152,3.85175014,83.447,83.402,10.7969]
[1770752966354,3.85175014,83.447,83.402,14.92080871]
[1770752966551,3.85175014,83.447,83.403,4.12390871]
[1770752967851,3.85175014,83.447,83.404,14.92060871]
[1770752969257,3.85175014,83.447,83.406,10.7964]
[1770752971850,3.85175014,83.447,83.406,14.92030871]
[1770752972050,3.85175014,83.483,83.43,7.80637863]
[1770752972257,3.85175014,83.479,83.431,4.12390871]
[1770752973256,3.85175014,83.479,83.433,4.00411369]
[1770752973454,3.68246992,83.47,83.433,4.00411369]
[1770752973654,3.68246992,83.47,83.365,14.722384]
[1770752973655,3.85175014,83.459,83.419,10.7947]
[1770752973859,3.68246992,83.45,83.419,10.7947]
[1770752974059,3.68246992,83.45,83.411,4.00411369]
[1770752974767,7.53422006,83.45,83.411,4.00411369]
[1770752974967,7.53422006,83.45,83.411,10.7958]
[1770752974968,3.85175014,83.449,83.411,10.7958]
[1770752975767,3.68246992,83.46,83.414,4.00798109]
[1770752977067,14.47196992,83.46,83.414,4.00798109]
[1770752977767,3.85175014,83.439,83.398,4.00267541]
[1770752977966,3.85175014,83.439,83.337,36.01]
[1770752977967,3.85175014,83.429,83.381,4.00267541]
[1770752978469,3.85175014,83.429,83.384,4.00267541]
[1770752979061,10.7936,83.428,83.384,4.00267541]
[1770752979767,3.85175014,83.427,83.375,10.8005]
[1770752979960,3.85175014,83.419,83.369,4.11368052]
[1770752980169,3.85175014,83.399,83.355,4.11368052]
[1770752980369,203.8575,83.455,83.34,4.11368052]
[1770752980370,3.68246992,83.38,83.34,4.11368052]
[1770752980967,3.68246992,83.38,83.307,95.66]
[1770752980968,3.85175014,83.369,83.32,3.68246992]
[1770752981269,3.68246992,83.36,83.311,4.07570971]
[1770752981673,3.85175014,83.369,83.311,4.07570971]
[1770752982264,3.68246992,83.35,83.311,4.07570971]
[1770752982464,3.68246992,83.35,83.285,95.68]
[1770752982465,3.85175014,83.349,83.297,4.07570971]
[1770752982667,3.85175014,83.349,83.29,3.68246992]
[1770752982668,3.85175014,83.349,83.301,4.08919996]
[1770752982881,3.85175014,83.349,83.31,3.68246992]
[1770752983375,3.85175014,83.349,83.246,22.083576]
[1770752983376,3.85175014,83.364,83.32,7.77166988]
[1770752983676,3.85175014,83.379,83.321,4.08919996]
[1770752983884,3.68246992,83.37,83.321,4.08919996]
[1770752985077,3.85175014,83.377,83.321,4.08919996]
[1770752985279,3.68246992,83.37,83.321,4.08919996]
[1770752986787,3.85175014,83.369,83.321,4.08919996]
[1770752989480,3.85175014,83.399,83.341,3.96037531]
[1770752989983,3.68246992,83.39,83.341,3.96037531]
[1770752990178,3.8741227,83.389,83.341,3.96037531]
[1770752990384,3.8741227,83.369,83.311,3.95541081]
[1770752990978,3.68246992,83.35,83.303,10.8098]
[1770752991376,3.8741227,83.359,83.31,3.68246992]
[1770752991587,3.68246992,83.35,83.3,3.68246992]
[1770752991884,3.8741227,83.349,83.3,3.68246992]
[1770752992884,3.8741227,83.349,83.285,10.8121]
[1770752993792,3.8741227,83.338,83.28,4.03386143]
[1770752994789,3.8741227,83.332,83.28,4.03386143]
[1770752995094,3.8741227,83.332,83.265,4.06201806]
[1770752995288,10.8077,83.32,83.266,10.8146]
[1770752995896,3.8741227,83.327,83.266,10.8146]
[1770752996583,3.8741227,83.324,83.266,10.8146]
[1770752997891,3.8741227,83.324,83.266,14.87874719]
[1770752998791,3.8741227,83.324,83.269,10.8142]
[1770752999395,3.8741227,83.324,83.26,9.87970886]
[1770752999396,10.8055,83.337,83.27,4.077525]
[1770752999585,3.8741227,83.336,83.282,10.8126]
[1770753000195,3.8741227,83.336,83.282,14.890125]
[1770753000691,10.8057,83.335,83.282,14.890125]
[1770753000888,3.8741227,83.334,83.282,14.890125]
[1770753002601,3.8741227,83.334,83.283,4.05787009]
[1770753003493,3.8741227,83.331,83.271,10.814]
[1770753003698,3.8741227,83.329,83.268,4.05786554]
[1770753004802,3.8741227,83.321,83.268,4.05786554]
[1770753005599,3.8741227,83.321,83.275,4.07241566]
[1770753006607,3.8741227,83.32,83.246,4.07241566]
[1770753007900,9.87970886,83.33,83.261,10.8153]
[1770753007901,3.8741227,83.314,83.261,10.8153]
[1770753008701,3.8741227,83.312,83.266,3.9806066]
[1770753009207,3.8741227,83.31,83.266,3.9806066]
[1770753010601,3.8741227,83.31,83.241,2.08914276]
[1770753010602,3.8741227,83.308,83.253,3.9806066]
[1770753011110,3.8741227,83.299,83.226,3.94698439]
[1770753012102,3.8741227,83.28,83.23,3.94698439]
[1770753012705,3.8741227,83.28,83.233,10.8188]
[1770753012905,3.8741227,83.269,83.22,3.69504573]
[1770753013406,3.8741227,83.269,83.216,3.97712121]
[1770753013610,3.8741227,83.267,83.216,3.97712121]
[1770753015200,3.8741227,83.267,83.191,2.09065513]
[1770753015201,3.8741227,83.264,83.192,3.97216323]
[1770753016803,10.8156,83.259,83.209,10.822]
[1770753017007,3.8741227,83.264,83.192,4.10082839]
[1770753017206,3.8741227,83.249,83.172,4.10082839]
[1770753018011,3.8741227,83.235,83.177,10.8261]
[1770753019010,3.8741227,83.249,83.182,4.10082839]
[1770753020415,3.99018432,83.235,83.182,4.10082839]
[1770753021408,3.99018432,83.235,83.161,2.09122676]
[1770753021409,3.99018432,83.251,83.191,3.84464782]
[1770753022716,3.96018042,83.239,83.191,3.84464782]
[1770753023510,3.96018042,83.239,83.194,10.824]
[1770753023710,3.96018042,83.239,83.191,3.84464782]
[1770753024711,9.89953231,83.25,83.191,3.84464782]
[1770753024712,3.96018042,83.237,83.191,3.84464782]
[1770753025617,3.96018042,83.235,83.176,3.8555565]
[1770753026116,3.96018042,83.223,83.165,10.8277]
[1770753026320,3.96018042,83.223,83.166,3.8555565]
[1770753026818,3.96018042,83.213,83.151,3.8555565]
[1770753027214,3.96018042,83.229,83.151,3.8555565]
[1770753027414,10.821,83.217,83.171,14.6824565]
[1770753027613,9.89953231,83.23,83.146,3.8555565]
[1770753027614,3.96018042,83.216,83.146,3.8555565]
[1770753028408,3.96018042,83.209,83.146,3.8555565]
[1770753028616,10.8253,83.184,83.146,3.8555565]
[1770753029208,3.96018042,83.19,83.146,3.8555565]
[1770753029820,3.96018042,83.21,83.146,3.8555565]
[1770753030816,10.8223,83.208,83.157,3.8555565]
[1770753031428,3.96018042,83.24,83.163,3.8555565]
[1770753031723,3.96018042,83.269,83.181,3.8555565]
[1770753031912,3.96018042,83.269,83.18,9.89953231]
[1770753031913,10.8168,83.25,83.2,3.8555565]
[1770753033123,3.96018042,83.269,83.204,3.8555565]
[1770753033925,9.89953231,83.29,83.2,9.89953231]
[1770753033926,10.8136,83.275,83.225,3.8555565]
[1770753034724,10.8142,83.27,83.225,3.8555565]
[1770753035627,3.96018042,83.274,83.225,3.8555565]
[1770753036714,3.96018042,83.274,83.226,10.8198]
[1770753041227,3.96018042,83.274,83.217,10.8209]
[1770753041823,3.96018042,83.271,83.209,3.8555565]
[1770753042127,3.96018042,83.269,83.209,3.8555565]
[1770753042629,3.96018042,83.263,83.209,3.8555565]
[1770753043925,3.96018042,83.26,83.21,10.8218]
[1770753044320,95.9,83.272,83.211,3.8555565]
[1770753044932,3.96018042,83.274,83.22,3.8555565]
[1770753045830,3.96018042,83.274,83.226,3.8555565]
[1770753046425,3.96018042,83.305,83.233,3.8555565]
[1770753047133,323.35322847,83.308,83.241,3.8555565]
[1770753047134,14.77158042,83.292,83.241,3.8555565]
[1770753047431,3.96018042,83.291,83.241,3.8555565]
[1770753047631,3.96018042,83.291,83.244,10.8174]
[1770753049229,3.96018042,83.287,83.222,3.8555565]
[1770753049528,3.96018042,83.287,83.207,3.8555565]
[1770753049925,3.96018042,83.269,83.221,10.8204]
[1770753051825,9.89953231,83.3,83.211,10.8217]
[1770753051826,3.94313483,83.267,83.211,10.8217]
[1770753052026,3.94313483,83.265,83.181,3.91520804]
[1770753052225,3.94313483,83.263,83.181,3.91520804]
[1770753052430,3.94313483,83.261,83.181,3.91520804]
[1770753053129,3.94313483,83.261,83.213,3.91520804]
[1770753053836,3.94313483,83.261,83.221,10.8204]
[1770753056639,3.94313483,83.257,83.213,3.91520804]
[1770753057434,3.94313483,83.249,83.171,3.91520804]
[1770753057634,3.94313483,83.247,83.171,3.91520804]
[1770753058232,135.74,83.246,83.171,3.91520804]
[1770753058429,3.94313483,83.245,83.171,3.91520804]
[1770753058633,3.94313483,83.243,83.171,3.91520804]
[1770753058835,3.94313483,83.229,83.187,10.8248]
[1770753059839,10.8196,83.228,83.187,10.8248]
[1770753060640,3.94313483,83.229,83.194,10.824]
[1770753063340,3.94313483,83.229,83.149,95.9]
[1770753063341,3.94313483,83.229,83.169,3.91520804]
[1770753063643,3.94313483,83.227,83.142,3.91520804]
[1770753064435,3.94313483,83.217,83.142,3.91520804]
[1770753065440,3.94313483,83.232,83.165,3.91520804]
[1770753065742,10.8192,83.231,83.185,10.8252]
[1770753066045,10.8192,83.231,83.18,3.91520804]
[1770753066639,10.8192,83.231,83.181,10.8256]
[1770753067451,10.8192,83.231,83.182,3.91520804]
[1770753070651,3.94313483,83.232,83.15,9.8992721]
[1770753070652,3.94313483,83.232,83.191,3.91520804]
[1770753071354,3.94313483,83.232,83.19,10.8244]
[1770753071755,14.76223483,83.232,83.19,10.8244]
[1770753072357,3.94313483,83.231,83.19,10.8244]
[1770753073261,3.94313483,83.231,83.18,3.91520804]
[1770753074443,3.94313483,83.223,83.166,3.91520804]
[1770753075750,3.94313483,83.221,83.174,10.8265]
[1770753076151,3.94313483,83.221,83.166,3.91520804]
[1770753077755,10.8207,83.22,83.18,10.8258]
[1770753078860,14.52039003,83.22,83.18,10.8258]
[1770753079056,10.8211,83.217,83.18,10.8258]
[1770753079454,10.8211,83.217,83.172,10.8268]
[1770753080659,3.95835615,83.217,83.17,3.69969003]
[1770753080862,3.95835615,83.217,83.166,3.91520804]
[1770753081059,3.69969003,83.21,83.166,3.91520804]
[1770753081260,3.69969003,83.2,83.152,3.84475944]
[1770753081462,3.95835615,83.199,83.152,3.84475944]
[1770753082759,3.95835615,83.199,83.16,10.8283]
[1770753083356,10.8235,83.198,83.16,10.8283]
[1770753083558,3.95835615,83.199,83.16,10.8283]
[1770753084162,3.91506269,83.213,83.166,3.97303831]
[1770753084661,10.8209,83.219,83.179,10.8259]
[1770753084862,10.8209,83.219,83.18,3.97303831]
[1770753085764,10.8209,83.219,83.181,10.8256]
[1770753087572,10.82,83.225,83.183,10.8254]
[1770753087764,10.82,83.225,83.184,3.97303831]
[1770753087959,3.91506269,83.219,83.157,3.97303831]
[1770753088171,3.91506269,83.207,83.159,3.97303831]
[1770753088570,10.8231,83.202,83.16,14.52809003]
[1770753089071,10.8231,83.202,83.16,10.8284]
[1770753092078,14.73816269,83.202,83.16,10.8284]
[1770753092271,10.8238,83.196,83.159,3.97303831]
[1770753092479,21.09451792,83.23,83.141,462.64731076]
[1770753092480,3.91506269,83.195,83.145,3.97303831]
[1770753093774,10.8242,83.193,83.148,3.97303831]
[1770753094378,3.91506269,83.189,83.148,3.97303831]
[1770753095081,3.91506269,83.187,83.147,10.83]
[1770753095278,3.91506269,83.187,83.137,95.94]
[1770753095478,10.8258,83.18,83.137,95.94]
[1770753095777,14.74086269,83.18,83.135,3.97303831]
[1770753095977,3.91506269,83.179,83.135,3.97303831]
[1770753096176,3.91506269,83.179,83.119,95.94]
[1770753096177,3.91506269,83.177,83.121,3.97303831]
[1770753097779,14.74216269,83.171,83.124,10.833]
[1770753097978,14.74216269,83.171,83.121,3.97303831]
[1770753098384,3.91506269,83.184,83.134,3.97303831]
[1770753098785,3.91506269,83.184,83.121,3.97303831]
[1770753099681,3.91506269,83.174,83.131,10.8321]
[1770753099882,3.91506269,83.174,83.121,3.97303831]
[1770753100586,3.91506269,83.172,83.124,10.833]
[1770753100884,3.91506269,83.172,83.13,10.8322]
[1770753101082,3.91506269,83.172,83.121,3.97303831]
[1770753101774,10.8278,83.165,83.121,14.80653831]
[1770753101980,3.91506269,83.172,83.121,3.97303831]
[1770753102385,3.91506269,83.171,83.121,3.97303831]
[1770753103182,3.91506269,83.171,83.13,10.8322]
[1770753104879,10.8272,83.17,83.122,10.8332]
[1770753105085,10.8272,83.17,83.123,3.97303831]
[1770753106081,10.8276,83.166,83.126,10.8328]
[1770753106780,3.91506269,83.169,83.126,14.80583831]
[1770753106990,3.91506269,83.169,83.129,10.8324]
[1770753107292,3.91506269,83.182,83.13,3.97303831]
[1770753107785,3.91506269,83.181,83.133,14.80493831]
[1770753107985,3.91506269,83.181,83.133,3.97303831]
[1770753108687,3.91506269,83.181,83.139,10.8311]
[1770753109893,3.91506269,83.169,83.128,10.8325]
[1770753110293,3.91506269,83.169,83.131,14.84480908]
[1770753110991,3.91506269,83.169,83.133,10.8319]
[1770753111193,3.88515697,83.187,83.132,4.01270908]
[1770753112692,3.88515697,83.185,83.14,10.831]
[1770753113394,3.88515697,83.181,83.134,4.01270908]
[1770753113882,3.7029968,83.18,83.134,4.01270908]
[1770753114390,7.58815377,83.18,83.134,4.01270908]
[1770753114588,3.88515697,83.169,83.12,3.7029968]
[1770753114792,3.88515697,83.169,83.12,7.71570588]
[1770753114987,3.88515697,83.169,83.121,4.01270908]
[1770753115396,10.8254,83.183,83.139,10.8311]
[1770753115895,10.8254,83.183,83.103,95.98]
[1770753115896,10.8254,83.183,83.141,4.01270908]
[1770753116288,10.8254,83.183,83.14,3.7029968]
[1770753116289,10.8254,83.183,83.142,4.01270908]
[1770753116889,3.88515697,83.206,83.151,4.01270908]
[1770753117083,3.70232228,83.22,83.171,4.01270908]
[1770753117489,3.70232228,83.21,83.171,4.01270908]
[1770753121292,3.88515697,83.215,83.171,4.01270908]
[1770753121991,10.8216,83.213,83.171,4.01270908]
[1770753122193,3.70232228,83.21,83.16,3.70232228]
[1770753122398,3.88515697,83.199,83.157,10.8288]
[1770753123791,3.88515697,83.199,83.16,14.84100908]
[1770753123991,3.70232228,83.21,83.161,4.01270908]
[1770753124992,3.88515697,83.213,83.171,4.01270908]
[1770753125196,10.8212,83.216,83.171,4.01270908]
[1770753125596,3.70232228,83.22,83.176,4.01270908]
[1770753129505,95.96,83.225,83.181,4.01270908]
[1770753129707,10.8199,83.226,83.181,4.01270908]
[1770753130607,10.8207,83.22,83.181,4.01270908]
[1770753132305,14.52302228,83.22,83.181,4.01270908]
[1770753133707,3.70232228,83.22,83.181,4.01270908]
[1770753133908,3.88515697,83.226,83.181,4.01270908]
[1770753134508,3.88515697,83.238,83.183,4.01270908]
[1770753135215,3.70232228,83.25,83.201,4.01270908]
[1770753136114,3.88515697,83.247,83.201,4.01270908]
[1770753136316,7.58747925,83.23,83.181,4.01270908]
[1770753136516,3.88515697,83.229,83.181,4.01270908]
[1770753137815,3.88515697,83.228,83.185,10.8251]
[1770753139018,3.88515697,83.228,83.186,4.01270908]
[1770753140311,10.8201,83.224,83.186,4.01270908]
[1770753140516,3.88515697,83.228,83.186,4.01270908]
[1770753140718,3.88515697,83.228,83.173,3.87139352]
[1770753140913,3.93427895,83.219,83.173,3.87139352]
[1770753141514,10.8198,83.227,83.183,3.87139352]
[1770753142120,3.93427895,83.224,83.183,3.87139352]
[1770753142316,3.69932929,83.22,83.183,3.87139352]
[1770753143825,14.52002929,83.22,83.183,3.87139352]
[1770753145316,4.12851596,83.219,83.183,3.87139352]
[1770753146725,10.8212,83.216,83.183,3.87139352]
[1770753147122,4.12851596,83.219,83.183,3.87139352]
[1770753147319,4.12851596,83.249,83.191,3.87068632]
[1770753147616,10.8186,83.236,83.201,3.87068632]
[1770753147822,3.69932929,83.23,83.186,3.87068632]
[1770753148021,3.69932929,83.23,83.188,10.8247]
[1770753148726,3.69932929,83.23,83.188,14.69538632]
[1770753148928,3.69932929,83.23,83.191,10.8244]
[1770753149427,3.69932929,83.23,83.191,14.69508632]
[1770753149626,4.12851596,83.235,83.191,14.69508632]
[1770753150123,10.8191,83.232,83.192,3.87068632]
[1770753150328,7.82784525,83.23,83.192,3.87068632]
[1770753150524,14.8755007,83.267,83.142,36.383784]
[1770753150525,4.12851596,83.219,83.17,3.69932929]
[1770753150731,3.69932929,83.21,83.169,3.87068632]
[1770753150918,4.12851596,83.209,83.169,3.87068632]
[1770753152024,4.12851596,83.209,83.153,3.87068632]
[1770753152229,4.12851596,83.199,83.153,3.87068632]
[1770753152831,4.12851596,83.199,83.154,10.8292]
[1770753153419,11.1811072,83.22,83.125,21.666]
[1770753153420,4.12851596,83.214,83.161,3.87068632]
[1770753153930,4.12851596,83.214,83.171,3.87068632]
[1770753154632,4.12851596,83.214,83.173,14.69738632]
[1770753156429,3.69932929,83.21,83.173,14.69738632]
[1770753156633,4.12851596,83.214,83.173,14.69738632]
[1770753157833,4.12851596,83.214,83.16,3.69932929]
[1770753157834,4.12851596,83.214,83.179,10.8259]
[1770753160722,7.82784525,83.21,83.172,10.8268]
[1770753161123,7.82784525,83.21,83.161,3.87068632]
[1770753161326,4.12851596,83.21,83.161,3.87068632]
[1770753162126,4.12851596,83.21,83.166,3.87068632]
[1770753164328,3.69932929,83.22,83.173,3.87068632]
[1770753164526,3.69932929,83.23,83.181,3.87068632]
[1770753164733,4.12851596,83.236,83.181,3.87068632]
[1770753165132,3.69932929,83.23,83.181,3.87068632]
[1770753165728,3.69932929,83.23,83.188,10.8247]
[1770753167428,4.12851596,83.219,83.168,3.87068632]
[1770753167633,4.12851596,83.209,83.168,3.87068632]
[1770753168729,4.12851596,83.209,83.169,10.8272]
[1770753169935,4.12851596,83.209,83.174,10.8265]
[1770753173732,4.12851596,83.209,83.168,3.87068632]
[1770753174239,4.12851596,83.209,83.17,10.8271]
[1770753180746,3.75720133,83.207,83.168,3.87068632]
[1770753180944,3.75720133,83.207,83.163,10.8279]
[1770753180945,3.75720133,83.207,83.163,14.88367967]
[1770753181146,3.75720133,83.207,83.163,4.05577967]
[1770753181345,3.75720133,83.207,83.163,14.88367967]
[1770753181841,3.75720133,83.199,83.151,4.05577967]
[1770753182042,3.75720133,83.189,83.14,7.75598923]
[1770753182340,11.1811072,83.2,83.141,4.05577967]
[1770753182341,3.70020956,83.2,83.141,4.05577967]
[1770753182545,3.75720133,83.199,83.151,4.05577967]
[1770753183740,10.824,83.194,83.152,4.05577967]
[1770753185043,3.70178299,83.19,83.152,4.05577967]
[1770753186045,3.75720133,83.189,83.152,4.05577967]
[1770753186747,14.58190133,83.189,83.152,4.05577967]
[1770753187747,3.70178299,83.18,83.138,4.05577967]
[1770753187945,3.75720133,83.188,83.14,3.70178299]
[1770753188145,3.75720133,83.188,83.141,4.05577967]
[1770753188341,14.58200133,83.188,83.15,4.05577967]
[1770753192146,3.75720133,83.188,83.15,4.05577967]
[1770753193350,7.45898432,83.21,83.161,4.05577967]
[1770753193553,3.75720133,83.209,83.161,4.05577967]
[1770753194553,3.75720133,83.209,83.164,10.8278]
[1770753195151,3.75720133,83.189,83.15,4.05577967]
[1770753195848,3.75720133,83.189,83.156,4.05577967]
[1770753196350,10.8236,83.198,83.156,4.05577967]
[1770753196555,3.75720133,83.197,83.156,4.05577967]
[1770753196955,3.75720133,83.189,83.155,10.829]
[1770753197849,3.75720133,83.189,83.143,4.05577967]
[1770753197850,3.75720133,83.189,83.149,10.8298]
[1770753198353,3.75720133,83.189,83.155,10.829]
[1770753201159,11.1811072,83.208,83.14,10.831]
[1770753201160,4.15361981,83.179,83.14,10.831]
[1770753202857,4.15361981,83.179,83.141,3.8548369]
[1770753203653,4.15361981,83.179,83.131,3.8548369]
[1770753203857,21.6406,83.223,83.131,3.8548369]
[1770753203858,3.89691539,83.169,83.131,3.8548369]
[1770753206666,3.89691539,83.189,83.138,3.8548369]
[1770753207863,3.89691539,83.188,83.138,3.8548369]
[1770753208764,3.89691539,83.185,83.138,3.8548369]
[1770753209767,10.8255,83.183,83.138,3.8548369]
[1770753209957,10.8255,83.183,83.141,3.8548369]
[1770753210158,3.89691539,83.185,83.144,3.8548369]
[1770753215769,3.89691539,83.185,83.146,3.8548369]
[1770753215971,10.8247,83.189,83.146,3.8548369]
[1770753216269,3.89691539,83.198,83.146,3.8548369]
[1770753216270,10.8239,83.195,83.146,3.8548369]
[1770753217067,10.8239,83.195,83.15,3.70178299]
[1770753217268,14.72081539,83.195,83.151,3.8548369]
[1770753217567,3.89691539,83.191,83.151,3.8548369]
[1770753218774,10.8248,83.188,83.151,3.8548369]
[1770753219668,3.89691539,83.191,83.151,3.8548369]
[1770753220866,3.89691539,83.189,83.151,3.8548369]
[1770753224572,3.89691539,83.181,83.136,14.6863369]
[1770753224876,3.89691539,83.169,83.126,3.8548369]
[1770753225671,3.89691539,83.169,83.127,10.8327]
[1770753225874,3.89691539,83.169,83.128,3.8548369]
[1770753228882,3.89691539,83.169,83.131,3.8548369]
[1770753230982,3.89691539,83.169,83.132,14.86764729]
[1770753231479,3.89691539,83.169,83.133,4.03564729]
[1770753240678,3.70178299,83.18,83.135,4.03564729]
[1770753240983,3.92265192,83.179,83.135,4.03564729]
[1770753242381,3.92265192,83.179,83.148,10.8299]
[1770753242682,3.92265192,83.179,83.148,4.03564729]
[1770753245679,3.92265192,83.179,83.138,4.03564729]